bitfinex/quotes_ETHUSD_20220103
["timestamp","ask_amount","ask_price","bid_price","bid_amount"]
[1641253333411,1.2405,3772.0,3771.0,0.383]
[1641253333610,0.00341054,3771.9,3771.1,2.56950081]
[1641253333811,0.00341054,3771.9,3771.2,0.383]
[1641253334011,0.00284211,3771.8,3771.3,2.73307754]
[1641253334410,0.00227369,3771.7,3771.3,2.73307754]
[1641253334812,0.00170527,3771.6,3771.3,2.73307754]
[1641253335115,0.00113684,3771.5,3771.3,3.39587754]
[1641253335411,0.00511581,3772.2,3771.3,0.9628]
[1641253335611,0.00511581,3772.2,3771.3,3.30143081]
[1641253335811,0.00454738,3772.1,3771.3,3.30143081]
[1641253336210,0.00397896,3772.0,3771.3,3.30143081]
[1641253336652,0.662913,3772.2,3771.1,0.00113685]
[1641253336851,0.00568423,3772.3,3771.1,0.00113685]
[1641253336852,2.09515679,3772.0,3771.1,0.00113685]
[1641253337051,2.09515679,3772.0,3771.0,0.00170527]
[1641253337655,0.00511581,3772.2,3771.0,0.00170527]
[1641253337656,5.6975247,3772.2,3771.0,0.00170527]
[1641253338055,2.33052738,3772.1,3771.0,0.00170527]
[1641253338255,1.33052738,3772.1,3771.0,0.00170527]
[1641253338457,0.66301,3771.6,3771.0,0.00170527]
[1641253338756,0.00113684,3771.5,3771.0,0.00170527]
[1641253339555,2.09629363,3771.5,3771.0,0.00170527]
[1641253340994,0.00113684,3771.5,3771.0,0.00170527]
[1641253341295,0.00113684,3771.5,3771.1,0.00229228]
[1641253351748,0.00113684,3771.5,3771.4,1.04834037]
[1641253351949,0.00113684,3771.5,3771.1,0.00229228]
[1641253354952,0.00113684,3771.5,3771.1,0.30229228]
[1641253355152,0.00113684,3771.5,3771.1,1.40599695]
[1641253355805,0.00113684,3771.5,3771.2,3.01106289]
[1641253356200,0.00113684,3771.5,3771.2,0.66288]
[1641253356401,0.00113684,3771.5,3771.2,2.98957524]
[1641253356701,0.00113684,3771.5,3771.2,0.66288]
[1641253357302,0.00113684,3771.5,3771.2,2.99726941]
[1641253359746,0.00113684,3771.5,3771.3,0.683]
[1641253359945,0.00113684,3771.5,3771.3,1.34576]
[1641253360148,0.00113684,3771.5,3771.3,1.64576]
[1641253361846,0.00113684,3771.5,3771.4,5.76154302]
[1641253362052,0.00113684,3771.5,3771.4,3.22428372]
[1641253362251,0.00113684,3771.5,3771.4,3.52428372]
[1641253362895,0.00113684,3771.5,3771.4,3.52655244]
[1641253364800,0.00113684,3771.5,3771.4,3.56051627]
[1641253367946,0.00113684,3771.5,3771.4,3.94351627]
[1641253368652,0.00113684,3771.5,3771.4,7.59200555]
[1641253368859,2.09090599,3772.4,3771.5,15.56]
[1641253369048,2.09090599,3772.4,3771.6,2.79189038]
[1641253369249,0.00568423,3772.3,3771.7,15.56]
[1641253369453,0.00568423,3772.3,3771.8,2.55613384]
[1641253369649,0.00511581,3772.2,3771.8,2.89118391]
[1641253369850,0.00511581,3772.2,3771.9,0.03267959]
[1641253370050,0.00454738,3772.1,3772.0,1.46741327]
[1641253370250,0.00454738,3772.1,3772.0,2.13006327]
[1641253370499,0.00454738,3772.1,3772.0,4.90192274]
[1641253371101,2.09545337,3772.1,3772.0,4.90192274]
[1641253371900,0.00454738,3772.1,3772.0,4.90192274]
[1641253372601,2.09545337,3772.1,3772.0,4.90192274]
[1641253373409,0.06654171,3773.1,3772.1,4.5]
[1641253373606,2.09818734,3773.0,3772.2,0.383]
[1641253373805,2.10330316,3773.0,3772.2,1.34559]
[1641253374010,2.10330316,3773.0,3772.2,2.04662351]
[1641253374443,2.10330316,3773.0,3772.8,1.01216005]
[1641253374745,2.10330316,3773.0,3772.2,2.67073]
[1641253374944,2.10330316,3773.0,3772.2,2.7099699]
[1641253375144,2.10330316,3773.0,3772.3,0.66258]
[1641253375345,0.00511582,3773.0,3772.4,0.383]
[1641253375543,0.00511582,3773.0,3772.4,3.74227528]
[1641253375745,0.00511582,3773.0,3772.7,1.14813714]
[1641253375945,0.00511582,3773.0,3772.7,1.44813714]
[1641253376146,0.00511582,3773.0,3772.7,1.74813714]
[1641253376346,0.00511582,3773.0,3772.7,2.41072224]
[1641253376750,0.00511582,3773.0,3772.7,0.3]
[1641253376951,0.00511582,3773.0,3772.5,1.62518]
[1641253377149,0.00511582,3773.0,3772.6,0.105359]
[1641253380404,0.00511582,3773.0,3772.6,0.405359]
[1641253383655,0.00511582,3773.0,3772.6,0.105359]
[1641253384656,0.00511582,3773.0,3772.7,0.00211068]
[1641253384856,0.00511582,3773.0,3772.8,1.20240751]
[1641253385057,0.00511582,3773.0,3772.8,1.50240751]
[1641253394011,2.00287495,3772.9,3772.8,2.16499751]
[1641253395015,0.0588,3773.9,3772.8,2.16499751]
[1641253395016,7.3123521,3774.3,3772.9,4.85719747]
[1641253395213,7.3123521,3774.3,3773.2,0.01288153]
[1641253395214,3.5972521,3774.3,3773.2,0.01288153]
[1641253395512,0.00341054,3773.6,3773.3,0.383]
[1641253395711,0.00341054,3773.6,3773.3,0.683]
[1641253395911,3.5972521,3774.3,3773.4,4.53630326]
[1641253395912,0.00284211,3773.5,3773.4,4.53630326]
[1641253396112,0.00284211,3773.5,3773.4,4.91930326]
[1641253396312,0.00284211,3773.5,3773.4,2.03630457]
[1641253396513,0.00284211,3773.5,3773.4,2.33630457]
[1641253396746,0.00284211,3773.5,3773.4,2.99891751]
[1641253397348,0.00284211,3773.5,3773.4,5.5218485]
[1641253402504,0.00284211,3773.5,3773.4,2.36436481]
[1641253402898,0.00284211,3773.5,3773.4,1.31900091]
[1641253403102,0.00284211,3773.5,3773.4,3.05539219]
[1641253404149,0.00284211,3773.5,3773.4,2.03839088]
[1641253404550,0.00284211,3773.5,3773.4,1.73839088]
[1641253404752,0.00284211,3773.5,3773.4,0.0019996]
[1641253407656,0.00284211,3773.5,3773.4,0.00403992]
[1641253412351,0.00284211,3773.5,3773.4,1.26513297]
[1641253413156,0.00284211,3773.5,3773.4,1.56513297]
[1641253417699,0.00284211,3773.5,3773.4,0.30403992]
[1641253417898,0.00284211,3773.5,3773.4,0.00403992]
[1641253426207,1.86473819,3774.2,3773.4,0.00403992]
[1641253426646,0.00625265,3774.1,3773.4,0.00403992]
[1641253427048,0.00568423,3774.0,3773.4,0.00403992]
[1641253427449,0.00511581,3773.9,3773.4,0.00403992]
[1641253427847,1.86473819,3774.1,3773.4,0.00403992]
[1641253427848,0.00454738,3773.8,3773.4,0.00403992]
[1641253428253,0.00397896,3773.7,3773.4,0.00403992]
[1641253428653,0.00341054,3773.6,3773.4,0.00403992]
[1641253429053,0.00284211,3773.5,3773.4,0.00403992]
[1641253438204,2.47887353,3773.5,3773.4,0.00403992]
[1641253438400,2.86187353,3773.5,3773.4,0.00403992]
[1641253438600,0.38584211,3773.5,3773.4,0.00403992]
[1641253438799,2.93584211,3773.5,3773.4,0.00403992]
[1641253439003,4.8005803,3773.5,3773.4,0.00403992]
[1641253439199,2.2505803,3773.5,3773.4,0.00403992]
[1641253439402,1.8675803,3773.5,3773.4,0.00403992]
[1641253455207,4.53209613,3773.5,3773.4,0.00403992]
[1641253457455,1.8675803,3773.5,3773.4,0.00403992]
[1641253459257,1.325306,3773.7,3773.5,3.6]
[1641253459460,10.68486,3774.7,3773.6,2.47603142]
[1641253459461,6.7085,3774.7,3773.6,2.47603142]
[1641253459659,3.6385,3774.7,3773.6,2.77603142]
[1641253459862,0.00170527,3773.8,3773.6,2.84194885]
[1641253460061,0.00170527,3773.8,3773.7,4.56591743]
[1641253460260,3.38660883,3774.8,3773.7,4.56591743]
[1641253460505,0.0611,3775.2,3774.4,0.3]
[1641253460704,6.7244,3775.7,3774.4,1.2114]
[1641253460705,0.00682108,3774.7,3774.4,1.2114]
[1641253460905,0.00682108,3774.7,3774.4,0.9114]
[1641253461109,0.00625266,3774.6,3774.5,3.20188253]
[1641253461308,0.00625266,3774.6,3774.5,3.86418253]
[1641253461508,0.0119369,3774.6,3774.5,3.86418253]
[1641253461914,0.0119369,3774.6,3774.5,6.25436887]
[1641253462513,0.0119369,3774.6,3774.5,6.55436887]
[1641253463711,0.0119369,3774.6,3774.5,2.16421472]
[1641253466056,0.0119369,3774.6,3774.5,4.50505346]
[1641253466461,0.0119369,3774.6,3774.5,2.16421472]
[1641253467664,0.0119369,3774.6,3774.5,4.4990092]
[1641253467902,0.0119369,3774.6,3774.5,2.16421472]
[1641253468104,0.0119369,3774.6,3774.5,0.66418253]
[1641253468404,0.0119369,3774.6,3774.5,0.00188253]
[1641253474458,2.9619369,3774.6,3774.5,0.00188253]
[1641253475603,0.0119369,3774.6,3774.5,0.00188253]
[1641253476007,0.3949369,3774.6,3774.5,0.00188253]
[1641253477713,0.0119369,3774.6,3774.5,0.00188253]
[1641253480052,1.84220805,3774.6,3774.5,0.00188253]
[1641253485011,4.28667142,3774.6,3774.5,0.00188253]
[1641253487550,4.22089919,3774.6,3774.5,0.00188253]
[1641253487751,1.84220805,3774.6,3774.5,0.00188253]
[1641253488160,4.26475173,3774.6,3774.5,0.00188253]
[1641253488960,4.20164986,3774.6,3774.5,0.00188253]
[1641253489457,1.84220805,3774.6,3774.5,0.00188253]
[1641253490258,4.19487209,3774.6,3774.5,0.00188253]
[1641253490708,1.84220805,3774.6,3774.5,0.00188253]
[1641253491506,1.83027115,3774.6,3774.5,0.00188253]
[1641253491905,0.66253,3774.8,3774.5,0.00188253]
[1641253492305,0.00682108,3774.7,3774.5,0.00188253]
[1641253492705,4.50625266,3774.6,3774.5,0.00188253]
[1641253494148,0.00625266,3774.6,3774.5,0.00188253]
[1641253499205,1.81165893,3774.6,3774.5,0.00188253]
[1641253500204,0.00625266,3774.6,3774.5,0.00188253]
[1641253501749,3.33975266,3775.1,3774.5,0.00188253]
[1641253502248,0.0022737,3775.0,3774.5,0.00188253]
[1641253502449,1.82344735,3774.6,3774.5,0.00188253]
[1641253503653,0.00170527,3774.9,3774.5,0.01454884]
[1641253504057,0.00113685,3774.8,3774.5,0.01454884]
[1641253504354,0.00170527,3774.9,3774.6,1.2051619]
[1641253504555,0.00170527,3774.9,3774.7,2.48310061]
[1641253504755,0.00113685,3774.8,3774.7,2.48310061]
[1641253505157,0.00113685,3774.8,3774.7,3.14529061]
[1641253507009,0.00113685,3774.8,3774.7,5.3014981]
[1641253507912,1.82344735,3775.2,3774.8,4.5]
[1641253508113,1.82344735,3775.2,3774.9,3.57614148]
[1641253508311,1.82572104,3775.2,3774.9,2.91406148]
[1641253508510,0.00227369,3775.2,3774.9,3.21406148]
[1641253508915,0.00227369,3775.2,3775.0,15.56]
[1641253509161,0.00227369,3775.2,3775.1,18.3435073]
[1641253509354,0.00227369,3775.2,3775.1,18.83491085]
[1641253509555,0.00227369,3775.2,3775.1,19.0263144]
[1641253509759,0.00227369,3775.2,3775.1,19.99518662]
[1641253509959,1.76169948,3775.7,3775.2,20.06]
[1641253510161,1.76169948,3775.7,3775.3,3.05120905]
[1641253510358,1.76169948,3775.7,3775.5,4.5]
[1641253510562,1.76169948,3776.4,3775.6,2.90426565]
[1641253510761,1.76169948,3776.4,3775.6,3.86620615]
[1641253510960,1.76624686,3776.4,3775.6,3.86620615]
[1641253511163,1.76624686,3776.4,3775.7,0.3]
[1641253511362,1.76624686,3776.4,3775.9,1.76447665]
[1641253511566,1.76624686,3776.4,3776.0,0.383]
[1641253511762,1.76624686,3776.4,3776.0,1.04497]
[1641253512165,1.76624686,3776.4,3775.8,0.66197]
[1641253512365,1.76624686,3776.4,3775.7,0.66213]
[1641253512565,1.76624686,3776.4,3775.6,1.73639128]
[1641253512765,1.76169948,3776.3,3775.4,1.32536685]
[1641253513203,0.00341054,3776.2,3775.4,1.32536685]
[1641253513603,1.76169948,3776.3,3775.4,1.32536685]
[1641253513604,0.00284211,3776.1,3775.4,2.72547982]
[1641253513806,0.00284211,3776.1,3775.4,3.36346016]
[1641253514108,1.76169948,3776.3,3775.4,3.36346016]
[1641253514109,0.00227369,3776.0,3775.5,1.7369284]
[1641253514305,0.00227369,3776.0,3775.5,2.3990184]
[1641253514504,0.00170527,3775.9,3775.5,17.9590184]
[1641253514706,0.00170527,3775.9,3775.8,0.19140355]
[1641253514906,1.76169948,3776.4,3775.8,1.51533355]
[1641253515106,1.76169948,3776.4,3775.8,2.11533355]
[1641253515304,0.00397896,3776.3,3775.8,3.43933935]
[1641253515504,0.00397896,3776.3,3775.9,0.66201]
[1641253515704,0.00341054,3776.2,3775.9,0.66201]
[1641253515905,0.00341054,3776.2,3775.9,1.3240129]
[1641253516106,0.00284211,3776.1,3775.9,2.6479829]
[1641253516507,0.00227369,3776.0,3775.9,2.9479829]
[1641253518360,2.53934355,3775.7,3775.5,1.73639128]
[1641253518562,5.02162655,3775.7,3775.5,1.73639128]
[1641253518760,2.53934355,3775.7,3775.5,1.73639128]
[1641253519058,2.53934355,3775.7,3775.4,0.00113685]
[1641253519059,2.53934355,3775.7,3775.6,1.73639128]
[1641253519363,2.53934355,3775.7,3775.6,1.73995728]
[1641253519859,2.53934355,3775.7,3775.6,1.93136083]
[1641253520060,2.53934355,3775.7,3775.6,0.19496955]
[1641253520061,4.30104303,3775.7,3775.6,0.19496955]
[1641253521302,2.95,3775.6,3774.8,0.06635189]
[1641253521705,0.00113685,3775.6,3774.9,0.00284212]
[1641253522606,1.76283633,3775.6,3774.9,0.00284212]
[1641253522807,1.71283633,3775.6,3774.9,0.00284212]
[1641253523005,1.71283633,3775.6,3774.9,0.00397897]
[1641253524353,4.01459443,3775.6,3774.9,0.00397897]
[1641253524557,1.71283633,3775.6,3774.9,0.00397897]
[1641253524752,13.20163355,3775.7,3774.9,0.00397897]
[1641253525555,12.53934355,3775.7,3774.9,0.00397897]
[1641253526162,12.53934355,3775.7,3774.9,15.56397897]
[1641253526460,12.53934355,3775.7,3775.0,0.00341054]
[1641253526657,12.53934355,3775.7,3775.0,1.32751054]
[1641253527063,12.53934355,3775.7,3775.1,0.00284212]
[1641253528506,12.53934355,3775.7,3775.0,0.00341054]
[1641253530108,12.53934355,3775.7,3774.9,1.74037025]
[1641253530306,12.53934355,3775.7,3775.0,0.66556054]
[1641253530506,12.53934355,3775.7,3775.0,2.93244496]
[1641253530708,12.53934355,3775.7,3775.2,0.66213]
[1641253531106,12.53934355,3775.7,3775.3,0.00170527]
[1641253533257,12.53934355,3775.7,3775.2,0.0022737]
[1641253541352,12.53934355,3775.7,3775.3,0.00140436]
[1641253541752,12.53934355,3775.7,3775.4,0.00113685]
[1641253542054,4.5627864,3775.5,3775.4,0.00113685]
[1641253542253,8.57021049,3775.5,3775.4,0.00113685]
[1641253542656,9.57021049,3775.5,3775.4,0.00113685]
[1641253543113,25.13021049,3775.5,3775.4,0.00113685]
[1641253543314,28.47733464,3775.5,3775.4,0.00113685]
[1641253543513,28.47733464,3775.5,3774.8,4.57e-06]
[1641253543514,15.56,3774.9,3774.8,4.57e-06]
[1641253543714,15.943,3774.9,3774.8,4.57e-06]
[1641253543914,15.943,3774.9,3774.8,0.00341511]
[1641253544315,17.86579775,3774.9,3774.8,0.00341511]
[1641253544516,2.30579775,3774.9,3774.8,0.00341511]
[1641253544716,4.71773322,3774.9,3774.8,0.00341511]
[1641253545916,4.71773322,3774.9,3774.8,0.10877411]
[1641253546314,4.6261656,3774.9,3774.8,0.10877411]
[1641253546515,2.30579775,3774.9,3774.8,0.10877411]
[1641253547757,4.59326116,3774.9,3774.8,0.10877411]
[1641253547963,4.60234791,3774.9,3774.8,0.10877411]
[1641253548360,4.67547648,3774.9,3774.8,0.10877411]
[1641253550806,2.30579775,3774.9,3774.8,0.10877411]
[1641253551016,2.30579775,3774.9,3774.5,4.57e-06]
[1641253551017,0.55371046,3774.7,3774.5,4.57e-06]
[1641253551208,3.2264225,3774.7,3774.5,4.57e-06]
[1641253551407,0.383,3774.7,3774.6,0.00113685]
[1641253552307,2.30579775,3774.7,3774.6,0.00113685]
[1641253552509,2.30579775,3774.7,3774.6,0.00352003]
[1641253553510,4.61765949,3774.7,3774.6,0.00352003]
[1641253554008,4.61765949,3774.7,3774.6,0.00012003]
[1641253554273,4.55,3774.6,3774.2,0.06256799]
[1641253554478,1.32525,3774.4,3774.2,0.06256799]
[1641253554671,4.933,3774.3,3774.2,0.06256799]
[1641253555073,4.933,3774.3,3774.2,0.06484168]
[1641253555276,4.933,3774.3,3774.2,0.00227369]
[1641253555475,20.493,3774.3,3774.2,0.00227369]
[1641253555875,22.41579775,3774.3,3774.2,0.00227369]
[1641253557078,5.06265,3774.2,3774.0,0.105358]
[1641253557278,2.69440817,3774.1,3774.0,0.105358]
[1641253557678,2.69440817,3774.1,3774.0,0.10649485]
[1641253557902,2.69440817,3774.1,3774.0,0.21185385]
[1641253557903,4.61720592,3774.1,3774.0,0.21185385]
[1641253558110,4.61720592,3774.1,3773.0,1.73639128]
[1641253558111,0.211758,3774.0,3773.0,1.73639128]
[1641253558313,0.66279,3773.1,3773.0,1.73639128]
[1641253558507,7.63502418,3773.1,3773.0,1.73639128]
[1641253558908,7.63502418,3773.1,3773.0,1.84175028]
[1641253559508,5.00782193,3773.1,3773.0,1.84175028]
[1641253559709,5.00782193,3773.1,3773.0,0.105359]
[1641253559710,4.90048041,3773.1,3773.0,0.105359]
[1641253560309,2.58558775,3773.1,3773.0,0.105359]
[1641253560709,4.89140131,3773.1,3773.0,0.105359]
[1641253561015,2.58558775,3773.1,3773.0,0.105359]
[1641253561309,4.89018201,3773.1,3773.0,0.105359]
[1641253561962,4.89018201,3773.1,3772.9,0.2189975]
[1641253561963,4.596382,3773.0,3772.9,0.2189975]
[1641253562164,4.5,3772.9,3772.6,0.06597159]
[1641253562366,5.16292,3772.7,3772.6,0.06597159]
[1641253562563,8.09147675,3772.7,3772.6,0.06597159]
[1641253562763,24.65147675,3772.7,3772.6,0.00802952]
[1641253563164,24.65147675,3772.7,3772.6,0.00795793]
[1641253563668,24.65147675,3772.7,3772.5,0.00115503]
[1641253563867,24.65147675,3772.7,3772.4,0.00909477]
[1641253563868,22.10592,3772.7,3772.4,0.00909477]
[1641253564074,4.37929828,3772.6,3772.4,0.00909477]
[1641253564266,4.37929828,3772.6,3772.3,0.1150222]
[1641253564267,4.883,3772.5,3772.3,0.1150222]
[1641253564466,16.22304,3772.4,3772.3,0.105359]
[1641253564668,16.60604,3772.4,3772.3,0.105359]
[1641253564867,16.60604,3772.4,3772.3,0.1150222]
[1641253565071,4.5,3772.3,3772.1,5.65056012]
[1641253565272,7.34928828,3772.2,3770.9,0.63080424]
[1641253565514,0.66312,3771.3,3770.9,0.63080424]
[1641253565716,0.383,3771.2,3771.0,0.0073895]
[1641253566520,1.70938,3771.2,3771.0,0.0073895]
[1641253567320,1.70938,3771.2,3771.0,6.1273895]
[1641253567521,7.12989279,3771.1,3771.0,6.1273895]
[1641253567719,7.51289279,3771.1,3771.0,1.0440567]
[1641253567921,0.66328,3770.7,3769.2,0.01215152]
[1641253568123,0.66328,3770.7,3768.1,7.26028]
[1641253568124,0.6611,3770.5,3768.6,3.8942]
[1641253568321,3.28867133,3770.4,3769.3,0.0096632]
[1641253568719,3.28867133,3770.4,3768.7,0.01307374]
[1641253568923,15.56,3770.3,3769.3,0.105358]
[1641253569174,15.56,3770.3,3768.4,0.105359]
[1641253569175,0.80827296,3768.6,3768.4,0.105359]
[1641253569475,2.81730646,3768.5,3768.4,0.105359]
[1641253569672,0.383,3768.5,3768.4,5.9e-05]
[1641253569872,0.383,3768.5,3768.4,0.00170527]
[1641253570072,0.383,3768.5,3768.4,0.10706327]
[1641253570271,0.383,3768.5,3768.4,0.105358]
[1641253574212,0.383,3768.5,3768.4,0.10687706]
[1641253578766,2.77255892,3768.5,3768.4,0.10687706]
[1641253580504,2.77255892,3768.5,3768.4,0.00151906]
[1641253580505,3.77255892,3768.5,3768.4,0.00151906]
[1641253580905,2.77255892,3768.5,3768.4,0.10687806]
[1641253582207,3.77255892,3768.5,3768.4,0.10687806]
[1641253583107,6.14506678,3768.5,3768.4,0.10687806]
[1641253588615,21.70506678,3768.5,3768.4,0.10687806]
[1641253588818,6.14506678,3768.5,3768.4,0.10687806]
[1641253591020,6.14506678,3768.5,3768.4,0.00151906]
[1641253593877,6.14162279,3768.5,3768.4,0.00151906]
[1641253595806,6.14162279,3768.5,3768.0,0.06995936]
[1641253596006,0.66371,3768.2,3768.0,0.06995936]
[1641253596208,4.033,3768.1,3768.0,0.06598039]
[1641253596605,7.36678996,3768.1,3768.0,0.06995936]
[1641253596806,1.383,3768.1,3768.0,0.06995936]
[1641253597005,0.383,3768.1,3768.0,0.17531836]
[1641253597207,0.383,3768.1,3768.0,0.10933797]
[1641253597808,2.38955892,3768.4,3768.0,0.10933797]
[1641253598013,2.38955892,3768.1,3768.0,0.10933797]
[1641253598215,2.38955892,3768.1,3768.0,0.11812572]
[1641253599968,2.38955892,3768.5,3768.0,0.11812572]
[1641253600363,2.38955892,3768.5,3768.1,0.00341054]
[1641253601364,0.80827296,3768.6,3768.1,0.00341054]
[1641253603709,1.19127296,3768.6,3768.1,0.00341054]
[1641253603908,0.66363,3768.4,3768.1,0.00341054]
[1641253604110,0.383,3768.3,3768.1,0.00341054]
[1641253605414,1.04667,3768.3,3768.1,0.00341054]
[1641253605612,0.383,3768.3,3768.1,0.00341054]
[1641253606213,0.383,3768.3,3768.2,0.00138548]
[1641253606661,0.383,3768.3,3768.2,0.0042276]
[1641253607455,2.82924978,3768.3,3768.2,0.0042276]
[1641253607655,3.82924978,3768.3,3768.2,0.0042276]
[1641253608061,2.82924978,3768.3,3768.2,0.0042276]
[1641253616571,3.82924978,3768.3,3768.2,0.0042276]
[1641253623164,4.6,3768.2,3768.1,0.00011308]
[1641253623367,28.80423646,3768.2,3768.1,0.00011308]
[1641253623567,28.80423646,3768.2,3767.2,1.73639128]
[1641253623568,15.56,3768.0,3767.2,1.73639128]
[1641253623764,0.66389,3767.3,3767.2,1.73639128]
[1641253623966,1.04689,3767.3,3767.2,1.73639128]
[1641253624165,2.04689,3767.3,3767.2,1.73639128]
[1641253624764,2.04689,3767.3,3766.7,0.06605255]
[1641253624964,2.04689,3767.3,3767.1,0.210717]
[1641253625815,6.04624978,3767.2,3767.1,0.210717]
[1641253626018,9.74764343,3767.2,3767.1,0.210717]
[1641253626218,9.74764343,3767.2,3767.1,0.21696966]
[1641253626514,6.14764343,3767.2,3767.1,0.21696966]
[1641253626715,3.82924978,3767.2,3767.1,0.21696966]
[1641253627722,3.82924978,3767.2,3767.1,0.21937136]
[1641253628923,4.52240229,3767.2,3767.1,0.21937136]
[1641253629462,6.85657675,3767.2,3767.1,0.21937136]
[1641253629661,6.86423126,3767.2,3767.1,0.21937136]
[1641253629861,4.52240229,3767.2,3767.1,0.21937136]
[1641253631270,4.42502699,3767.2,3767.1,0.21937136]
[1641253632264,2.07615251,3767.2,3767.1,0.21937136]
[1641253632564,1.07615251,3767.2,3767.1,0.21937136]
[1641253632765,4.43595811,3767.2,3767.1,0.21937136]
[1641253633215,4.43595811,3767.2,3765.6,0.01245507]
[1641253633216,0.00112864,3767.1,3765.6,0.01245507]
[1641253633419,1.15842572,3766.4,3765.1,9.31789128]
[1641253633619,0.383,3766.3,3765.7,0.00795793]
[1641253634016,1.383,3766.3,3765.7,0.00795793]
[1641253634315,1.683,3766.3,3765.7,0.00795793]
[1641253634715,17.243,3766.3,3765.1,0.01136847]
[1641253634916,17.543,3766.3,3765.1,0.01136847]
[1641253635317,4.789,3765.9,3765.1,0.01136847]
[1641253635519,2.92901009,3765.8,3765.1,0.01136847]
[1641253635725,3.92901009,3765.8,3765.1,0.01136847]
[1641253637161,3.92901009,3765.8,3765.1,0.11672647]
[1641253637560,3.92901009,3765.8,3765.2,0.01080004]
[1641253638760,3.92901009,3765.8,3765.3,0.00112207]
[1641253639162,1.383,3765.8,3765.4,0.0096632]
[1641253639561,0.383,3765.8,3765.4,0.0096632]
[1641253644270,2.33841081,3765.7,3765.4,0.0096632]
[1641253644468,1.04715,3765.6,3765.4,0.0096632]
[1641253644666,2.04715,3765.6,3765.4,0.0096632]
[1641253645467,2.45,3765.5,3765.4,0.0096632]
[1641253645671,3.833,3765.5,3765.4,0.0096632]
[1641253646071,6.19856555,3765.5,3765.4,0.0096632]
[1641253646882,6.79856555,3765.5,3765.4,0.0096632]
[1641253648123,9.68240672,3765.5,3765.4,0.0096632]
[1641253649121,30.03140672,3765.5,3765.4,0.0096632]
[1641253649425,27.14756555,3765.5,3765.4,0.01079694]
[1641253650925,27.14756555,3765.5,3765.1,0.105358]
[1641253650926,15.56,3765.3,3765.1,0.105358]
[1641253651125,7.79442637,3765.2,3765.1,0.105358]
[1641253651324,4.65875637,3765.2,3765.1,0.105358]
[1641253652774,2.04733,3765.2,3765.1,0.105358]
[1641253653175,4.44330502,3765.2,3765.1,0.105358]
[1641253653373,20.00330502,3765.2,3765.1,0.105358]
[1641253653775,4.44330502,3765.2,3765.1,0.105358]
[1641253653973,4.4362727,3765.2,3765.1,0.105358]
[1641253654579,4.50306043,3765.2,3765.1,0.105358]
[1641253654976,2.04733,3765.2,3765.1,0.105358]
[1641253655176,4.42586328,3765.2,3765.1,0.105358]
[1641253655412,2.04733,3765.2,3765.1,0.105358]
[1641253655915,4.4443373,3765.2,3765.1,0.105358]
[1641253656114,4.48454422,3765.2,3765.1,0.105358]
[1641253656815,20.04454422,3765.2,3765.1,0.105358]
[1641253657016,22.64454422,3765.2,3765.1,0.105358]
[1641253657220,4.78454422,3765.2,3765.1,0.105358]
[1641253657416,20.34454422,3765.2,3765.1,0.105358]
[1641253658421,20.64454422,3765.2,3765.1,0.105358]
[1641253659270,25.43354422,3765.2,3765.1,0.105358]
[1641253659469,26.12719347,3765.2,3765.1,0.105358]
[1641253659874,29.03499865,3765.2,3765.1,0.105358]
[1641253660271,11.03778443,3765.2,3765.1,0.10640103]
[1641253660471,14.53778443,3765.2,3765.1,0.10640103]
[1641253661470,11.62997925,3765.2,3765.1,0.10640103]
[1641253661670,11.32997925,3765.2,3765.1,0.10640103]
[1641253661872,7.82997925,3765.2,3765.1,0.10640103]
[1641253662073,2.74097925,3765.2,3765.1,0.10640103]
[1641253662277,0.06592682,3765.7,3765.1,0.10640103]
[1641253662775,0.00113685,3765.6,3765.2,0.00113684]
[1641253663222,0.00113685,3765.6,3765.1,0.10640103]
[1641253663223,0.00113685,3765.6,3765.1,0.10569859]
[1641253663420,0.00170527,3765.5,3765.1,0.10569859]
[1641253663821,0.00113684,3765.4,3765.1,0.10569859]
[1641253664220,0.00170527,3765.5,3765.1,0.10569859]
[1641253664622,0.00113684,3765.4,3765.1,0.10569859]
[1641253665028,0.00170527,3765.5,3765.1,0.10569859]
[1641253665524,0.00113684,3765.4,3765.1,0.10569859]
[1641253665926,0.00170527,3765.5,3765.1,0.10569859]
[1641253666325,0.00113684,3765.4,3765.1,0.10569859]
[1641253666769,0.00170527,3765.5,3765.1,0.10569859]
[1641253667172,1.9925054,3765.9,3765.1,0.10569859]
[1641253667173,0.00113684,3765.4,3765.1,0.10569859]
[1641253667371,0.00113684,3765.4,3765.1,0.11795487]
[1641253667574,0.00568423,3766.2,3765.1,0.11795487]
[1641253667973,0.00511581,3766.1,3765.1,0.11795487]
[1641253668170,0.00511581,3766.1,3765.1,2.59019133]
[1641253668374,0.00454738,3766.0,3765.1,2.97319133]
[1641253668574,0.00454738,3766.0,3765.4,1.32762]
[1641253668772,0.00397896,3765.9,3765.4,1.32762]
[1641253669071,0.00341054,3765.8,3765.4,1.32762]
[1641253669273,0.00341054,3765.8,3765.3,1.8799]
[1641253669475,0.00284211,3765.7,3765.3,1.1667]
[1641253669874,0.00227369,3765.6,3765.3,1.1667]
[1641253670078,0.00227369,3765.6,3765.2,0.0589]
[1641253670273,0.00170527,3765.5,3765.2,0.0589]
[1641253670523,0.00170527,3765.5,3765.1,0.10569859]
[1641253670724,0.66402,3766.4,3765.1,0.10569859]
[1641253670725,0.00113684,3765.4,3765.1,0.10569859]
[1641253671226,1.33444265,3766.3,3765.2,0.00102544]
[1641253671625,0.00568423,3766.2,3765.2,0.00102544]
[1641253672126,0.38811581,3766.1,3765.2,0.00102544]
[1641253672325,0.66411,3766.0,3765.2,0.00102544]
[1641253672525,0.66865738,3766.0,3765.2,0.00102544]
[1641253672829,0.00397896,3765.9,3765.2,0.00102544]
[1641253673226,0.00341054,3765.8,3765.2,0.00102544]
[1641253673628,0.00284211,3765.7,3765.2,0.00102544]
[1641253673827,0.66411,3765.6,3765.2,0.00102544]
[1641253674029,0.66638369,3765.6,3765.2,0.00102544]
[1641253674277,0.00170527,3765.5,3765.2,0.00102544]
[1641253674678,0.00113684,3765.4,3765.2,0.00102544]
[1641253675078,0.00170527,3765.5,3765.2,0.00102544]
[1641253675481,0.00113684,3765.4,3765.2,0.00102544]
[1641253675879,0.00170527,3765.5,3765.2,0.00102544]
[1641253676286,0.66411,3765.6,3765.2,0.00102544]
[1641253676287,0.00113684,3765.4,3765.2,0.00102544]
[1641253676684,3.64764306,3765.5,3765.2,0.00102544]
[1641253676884,6.00260517,3765.5,3765.2,0.00102544]
[1641253677084,0.00113684,3765.4,3765.2,0.00102544]
[1641253677684,2.98287463,3765.4,3765.2,0.00102544]
[1641253679920,0.00113684,3765.4,3765.2,0.00102544]
[1641253680921,0.6445674,3765.6,3765.2,0.00102544]
[1641253681968,0.6445674,3765.6,3765.3,0.00101368]